bitfinex-derivatives/quotes_BNBF0:USTF0_20250316
["timestamp","ask_amount","ask_price","bid_price","bid_amount"]
[1742145571381,0.27981815,606.26,604.93,0.687]
[1742145571586,0.3298969,606.25,604.93,0.687]
[1742145571886,0.27981815,606.24,604.93,0.687]
[1742145572086,0.32990779,606.23,604.93,0.687]
[1742145572281,0.27981815,606.22,604.93,0.687]
[1742145572986,0.32991867,606.21,604.93,0.687]
[1742145573190,0.27981815,606.2,604.93,0.687]
[1742145573486,0.60974226,606.2,604.93,0.687]
[1742145573688,0.32992956,606.19,604.93,0.687]
[1742145573885,0.27981815,606.18,604.93,0.687]
[1742145574087,0.32994044,606.17,604.93,0.687]
[1742145574286,0.27981815,606.16,604.93,0.687]
[1742145574587,0.32995133,606.15,604.93,0.687]
[1742145574784,0.27981815,606.14,604.93,0.687]
[1742145574983,0.32996221,606.13,604.93,0.687]
[1742145575184,0.27981815,606.12,604.93,0.687]
[1742145575385,0.3299731,606.11,604.93,0.687]
[1742145575583,0.27981815,606.1,604.93,0.687]
[1742145577485,0.27980939,606.09,604.93,0.687]
[1742145577688,0.27980939,606.1,604.93,0.687]
[1742145577890,0.27980939,606.09,604.93,0.687]
[1742145578090,0.27980939,606.08,604.93,0.687]
[1742145578391,0.27980939,606.07,604.93,0.687]
[1742145578586,0.27980939,606.1,604.93,0.687]
[1742145578785,0.27980939,606.06,604.93,0.687]
[1742145578990,0.27980939,606.05,604.93,0.687]
[1742145579192,0.27980939,606.1,604.93,0.687]
[1742145579493,0.27980939,606.09,604.93,0.687]
[1742145579794,0.27980939,606.1,604.93,0.687]
[1742145579993,0.27980939,606.08,604.93,0.687]
[1742145580194,0.27980939,606.07,604.93,0.687]
[1742145580389,0.27980939,606.1,604.93,0.687]
[1742145580591,0.27980939,606.09,604.93,0.687]
[1742145580792,0.27980939,606.08,604.93,0.687]
[1742145580999,0.27980939,606.1,604.93,0.687]
[1742145581193,0.27980939,606.07,604.93,0.687]
[1742145581392,0.27980939,606.06,604.93,0.687]
[1742145581592,0.27980939,606.1,604.93,0.687]
[1742145581792,0.27980939,606.09,604.93,0.687]
[1742145581990,0.27980939,606.1,604.93,0.687]
[1742145582192,0.27980939,606.09,604.93,0.687]
[1742145582590,0.27980939,606.08,604.93,0.687]
[1742145582796,0.27980939,606.1,604.93,0.687]
[1742145582996,0.27980939,606.09,604.93,0.687]
[1742145583498,0.27980939,606.08,604.93,0.687]
[1742145583792,0.3299731,606.11,604.93,0.687]
[1742145583793,0.27980939,606.07,604.93,0.687]
[1742145584003,0.27980939,606.1,604.93,0.687]
[1742145584301,0.27980939,606.09,604.93,0.687]
[1742145584494,0.27980939,606.1,604.93,0.687]
[1742145585000,0.27979029,606.09,604.93,0.687]
[1742145585200,0.27979029,606.1,604.93,0.687]
[1742145585401,0.27979029,606.09,604.93,0.687]
[1742145585601,0.27979029,606.1,604.93,0.687]
[1742145585801,0.27979029,606.09,604.93,0.687]
[1742145586001,0.27979029,606.08,604.93,0.687]
[1742145586198,0.27979029,606.1,604.94,0.3306113]
[1742145586402,2.63955421,606.44,604.94,0.3306113]
[1742145586403,0.27979029,606.09,604.94,0.3306113]
[1742145586602,0.27979029,606.54,604.94,0.3306113]
[1742145586802,0.6095349,606.53,604.94,0.3306113]
[1742145587006,0.32975548,606.51,604.94,0.3306113]
[1742145587205,0.27979029,606.5,604.94,0.3306113]
[1742145588205,0.32976636,606.49,604.94,0.3306113]
[1742145588498,0.27979029,606.48,604.94,0.3306113]
[1742145588704,0.32978267,606.46,604.94,0.3306113]
[1742145588904,0.27979029,606.45,604.94,0.3306113]
[1742145589099,0.32979898,606.43,604.94,0.3306113]
[1742145589303,0.27983776,606.42,604.94,0.3306113]
[1742145589503,0.27983776,606.41,604.95,0.591]
[1742145589703,0.32982074,606.39,604.95,0.591]
[1742145589901,0.27983776,606.38,604.95,0.591]
[1742145590206,0.32983162,606.37,604.95,0.591]
[1742145590403,0.60966938,606.37,604.95,0.591]
[1742145590606,0.27983776,606.36,604.95,0.591]
[1742145590801,0.27983776,606.35,604.95,0.591]
[1742145591000,0.27983776,606.34,604.95,0.591]
[1742145591202,0.27983776,606.33,604.95,0.591]
[1742145591404,0.27983776,606.32,604.95,0.591]
[1742145591604,0.32983162,606.37,604.95,0.591]
[1742145591605,0.27983776,606.31,604.95,0.591]
[1742145591805,0.27983776,606.3,604.95,0.591]
[1742145592006,0.27983776,606.29,604.95,0.591]
[1742145592206,0.27983776,606.28,604.95,0.591]
[1742145592402,0.27983776,606.27,604.95,0.591]
[1742145592606,2.50503755,606.24,604.95,0.591]
[1742145592806,0.32991323,606.22,604.95,0.591]
[1742145593008,0.27983776,606.21,604.95,0.591]
[1742145593208,0.32992956,606.19,604.95,0.591]
[1742145593404,0.27983776,606.18,604.95,0.591]
[1742145593605,0.27983776,606.17,604.95,0.591]
[1742145593810,0.27983776,606.16,604.95,0.591]
[1742145594006,0.60978909,606.15,604.95,0.591]
[1742145594206,0.60979453,606.14,604.95,0.591]
[1742145594407,0.60979997,606.13,604.95,0.591]
[1742145594607,0.60980542,606.12,604.95,0.591]
[1742145594810,0.60981086,606.11,604.95,0.591]
[1742145595011,0.60981631,606.1,604.95,0.591]
[1742145595211,0.60982175,606.09,604.95,0.591]
[1742145595411,0.6098272,606.08,604.95,0.591]
[1742145595609,0.60983264,606.07,604.95,0.591]
[1742145595812,0.60983809,606.06,604.95,0.591]
[1742145596010,1.42572587,606.18,604.95,0.591]
[1742145596011,0.60984353,606.05,604.95,0.591]
[1742145596216,0.27983776,606.04,604.95,0.591]
[1742145596416,0.27983776,606.03,604.95,0.591]
[1742145596618,0.60985987,606.02,604.95,0.591]
[1742145596816,0.60986531,606.01,604.95,0.591]
[1742145597009,0.60987076,606.0,604.95,0.591]
[1742145597213,0.27983776,605.99,604.95,0.591]
[1742145597416,0.27983776,605.98,604.95,0.591]
[1742145597716,0.27983776,605.97,604.95,0.591]
[1742145598017,0.27983776,605.96,604.95,0.591]
[1742145598417,0.27983776,605.95,604.95,0.591]
[1742145598617,0.27983776,605.94,604.95,0.591]
[1742145598809,0.27983776,605.93,604.95,0.591]
[1742145599014,0.27983776,605.92,604.95,0.591]
[1742145599211,0.27983776,605.91,604.95,0.591]
[1742145599415,0.27983776,605.99,604.95,0.591]
[1742145599615,0.27983776,605.98,604.95,0.591]
[1742145599814,0.27983776,605.97,604.95,0.591]
[1742145600015,0.27983776,605.96,604.95,0.591]
[1742145600314,0.27983776,605.95,604.95,0.591]
[1742145600516,0.27983776,605.94,604.95,0.591]
[1742145600713,0.27983776,605.93,604.95,0.591]
[1742145600912,0.27983776,605.92,604.95,0.591]
[1742145601317,0.27983776,605.91,604.95,0.591]
[1742145601519,0.27983776,605.9,604.95,0.591]
[1742145601717,0.27983776,605.89,604.95,0.591]
[1742145601914,0.27983776,605.88,604.95,0.591]
[1742145602219,0.27983776,605.87,604.95,0.591]
[1742145602415,0.27983776,605.86,604.95,0.591]
[1742145602616,0.27983776,605.85,604.95,0.591]
[1742145602822,0.330033,606.0,604.95,0.591]
[1742145603021,0.27995368,605.99,604.95,0.591]
[1742145603217,0.60999757,605.98,604.95,0.591]
[1742145603423,0.61000302,605.97,604.95,0.591]
[1742145603623,0.61000846,605.96,604.95,0.591]
[1742145603824,0.61001391,605.95,604.95,0.591]
[1742145604026,0.61001936,605.94,604.95,0.591]
[1742145604218,0.27995368,605.93,604.95,0.591]
[1742145604419,0.27995368,605.92,604.95,0.591]
[1742145604619,0.33006568,605.94,604.95,0.591]
[1742145604822,0.27991369,605.93,604.95,0.591]
[1742145605023,0.27991369,605.92,604.95,0.591]
[1742145605324,0.27991369,605.91,604.95,0.591]
[1742145605825,0.27991369,605.9,604.95,0.591]
[1742145607420,0.33006568,605.94,604.95,0.591]
[1742145607619,0.27992318,605.93,604.95,0.591]
[1742145607825,0.27992318,605.92,604.95,0.591]
[1742145608024,0.27992318,605.91,604.95,0.591]
[1742145608223,0.27992318,605.9,604.95,0.591]
[1742145608425,0.27992318,605.93,604.95,0.591]
[1742145608621,0.27991928,605.92,604.95,0.591]
[1742145608823,0.33006568,605.94,604.95,0.591]
[1742145608824,0.27991928,605.91,604.95,0.591]
[1742145609025,0.27991928,605.93,604.95,0.591]
[1742145609225,0.27991928,605.92,604.95,0.591]
[1742145609421,0.27991928,605.93,604.95,0.591]
[1742145609624,0.27991928,605.92,604.95,0.591]
[1742145609825,0.33006568,605.94,604.95,0.591]
[1742145609826,0.27991928,605.91,604.95,0.591]
[1742145610028,0.27991928,605.93,604.95,0.591]
[1742145610227,0.27991928,605.92,604.95,0.591]
[1742145610427,0.27991928,605.91,604.95,0.591]
[1742145610619,0.27991928,605.9,604.95,0.591]
[1742145610824,0.27992656,605.89,604.95,0.591]
[1742145611125,0.27992656,605.88,604.95,0.591]
[1742145611324,0.27992656,605.93,604.95,0.591]
[1742145611526,0.27992656,605.92,604.95,0.591]
[1742145611727,0.27992656,605.93,604.95,0.591]
[1742145611925,0.27992656,605.92,604.95,0.591]
[1742145612121,0.27992656,605.91,604.95,0.591]
[1742145612430,0.27992656,605.9,604.95,0.591]
[1742145612622,0.27992656,605.93,604.95,0.591]
[1742145614224,0.33007657,605.92,604.95,0.591]
[1742145614425,0.27992656,605.91,604.95,0.591]
[1742145614629,0.33008747,605.9,604.95,0.591]
[1742145614824,0.27992656,605.89,604.95,0.591]
[1742145615028,0.33009836,605.88,604.95,0.591]
[1742145615226,0.27992656,605.87,604.95,0.591]
[1742145615427,0.33010926,605.86,604.95,0.591]
[1742145615631,0.27992656,605.85,604.95,0.591]
[1742145621732,0.27991289,605.84,604.95,0.591]
[1742145621937,0.27991289,605.85,604.95,0.591]
[1742145622230,0.27991289,605.84,604.95,0.591]
[1742145622435,0.27991289,605.85,604.95,0.591]
[1742145625137,0.27991289,605.84,604.95,0.591]
[1742145625336,0.27991289,605.83,604.95,0.591]
[1742145625537,0.27991289,605.82,604.95,0.591]
[1742145625735,0.27991289,605.81,604.95,0.591]
[1742145625938,0.27991289,605.8,604.95,0.591]
[1742145626138,0.27991289,605.85,604.95,0.591]
[1742145626334,0.27991289,605.84,604.95,0.591]
[1742145626535,0.27991289,605.83,604.95,0.591]
[1742145626741,0.27991289,605.82,604.95,0.591]
[1742145626941,0.27991289,605.81,604.95,0.591]
[1742145627242,0.27991289,605.8,604.95,0.591]
[1742145627441,0.33010926,605.86,604.95,0.591]
[1742145627442,0.27991289,605.85,604.95,0.591]
[1742145627741,0.27991289,605.84,604.95,0.591]
[1742145627939,0.27991289,605.83,604.95,0.591]
[1742145628140,0.27991289,605.82,604.95,0.591]
[1742145628335,0.27991289,605.81,604.95,0.591]
[1742145628541,0.27991289,605.85,604.95,0.591]
[1742145628843,0.27991289,605.84,604.95,0.591]
[1742145629043,0.27991289,605.83,604.95,0.591]
[1742145629440,0.27991289,605.82,604.95,0.591]
[1742145629639,0.27991289,605.81,604.95,0.591]
[1742145629858,0.27991289,605.8,604.95,0.591]
[1742145630041,0.27991289,605.85,604.95,0.591]
[1742145630236,0.27991289,605.84,604.95,0.591]
[1742145630442,0.27991289,605.83,604.95,0.591]
[1742145630743,0.27991289,605.82,604.95,0.591]
[1742145630942,0.27991289,605.81,604.95,0.591]
[1742145631135,3.45519638,605.85,604.95,0.591]
[1742145631136,0.27991289,605.8,604.95,0.591]
[1742145631336,0.27991289,605.79,604.95,0.591]
[1742145631543,0.27991289,605.78,604.95,0.591]
[1742145631743,0.27991289,605.83,604.95,0.591]
[1742145631942,0.27991289,605.82,604.95,0.591]
[1742145632142,0.27991289,605.81,604.95,0.591]
[1742145632343,0.27991289,605.8,604.95,0.591]
[1742145632539,0.27991289,605.79,604.95,0.591]
[1742145632740,0.27991289,605.78,604.95,0.591]
[1742145632941,1.43317554,605.82,604.95,0.591]
[1742145633144,0.27998899,605.81,604.95,0.591]
[1742145633338,0.27998899,605.8,604.95,0.591]
[1742145633542,0.27998899,605.79,604.95,0.591]
[1742145633743,0.27998899,605.78,604.95,0.591]
[1742145633943,0.27998899,605.77,604.95,0.591]
[1742145634245,0.27998899,605.76,604.95,0.591]
[1742145634448,2.50503755,605.78,604.95,0.591]
[1742145634641,0.27998899,605.75,604.95,0.591]
[1742145634844,0.27998899,605.74,604.95,0.591]
[1742145635040,0.27998899,605.77,604.95,0.591]
[1742145636543,0.27998899,605.85,604.95,0.591]
[1742145636741,0.27991507,605.84,604.95,0.591]
[1742145636941,0.27991507,605.85,604.95,0.591]
[1742145637147,0.27991507,605.84,604.95,0.591]
[1742145637346,0.27991507,605.85,604.95,0.591]
[1742145638550,0.27991294,605.84,604.95,0.591]
[1742145638753,0.27991294,605.83,604.95,0.591]
[1742145638954,0.27991294,605.85,604.95,0.591]
[1742145645661,0.27991294,605.85,604.41,0.28757479]
[1742145645855,0.27991294,605.85,604.43,0.33089026]
[1742145648866,0.27991294,605.85,604.43,1.09489026]
[1742145651668,0.27991294,605.85,604.44,0.30372883]
[1742145651871,0.27991294,605.85,604.46,0.33087383]
[1742145652072,0.27991294,605.85,604.47,0.30372883]
[1742145652272,0.27991294,605.85,604.49,0.33085741]
[1742145652664,0.27991294,605.85,604.5,0.30372883]
[1742145652869,0.27991294,605.85,604.52,0.33084099]
[1742145654574,0.27991294,605.84,604.52,0.33084099]
[1742145654875,0.27991294,605.83,604.52,0.33084099]
[1742145655073,0.27991294,605.82,604.52,0.33084099]
[1742145655269,0.27991294,605.81,604.52,0.33084099]
[1742145655468,0.27991294,605.8,604.52,0.33084099]
[1742145655669,0.27991294,605.79,604.52,0.33084099]
[1742145655874,0.27991294,605.78,604.52,0.33084099]
[1742145656070,0.27991294,605.85,604.52,0.33084099]
[1742145656268,0.27991294,605.84,604.52,0.33084099]
[1742145656468,0.27991294,605.85,604.52,0.33084099]
[1742145656670,0.27991294,605.84,604.52,0.33084099]
[1742145656873,0.27995584,605.83,604.52,0.33084099]
[1742145657071,0.27995584,605.82,604.52,0.33084099]
[1742145657269,0.33010926,605.86,604.52,0.33084099]
[1742145657270,0.27995584,605.85,604.52,0.33084099]
[1742145657468,0.27995584,605.84,604.52,0.33084099]
[1742145657669,0.27995584,605.85,604.52,0.33084099]
[1742145657870,0.27995584,605.84,604.52,0.33084099]
[1742145658076,0.27995584,605.83,604.52,0.33084099]
[1742145658271,0.27995584,605.85,604.52,0.33084099]
[1742145658475,0.27995584,605.82,604.52,0.33084099]
[1742145658676,0.27995584,605.81,604.52,0.33084099]
[1742145658877,0.27995584,605.85,604.52,0.33084099]
[1742145659073,0.27995584,605.8,604.52,0.33084099]
[1742145659272,0.27995584,605.79,604.52,0.33084099]
[1742145659476,0.27995584,605.85,604.52,0.33084099]
[1742145659678,0.27995584,605.84,604.52,0.33084099]
[1742145660075,0.27995584,605.83,604.52,0.33084099]
[1742145660275,0.27995584,605.85,604.52,0.33084099]
[1742145660475,0.27995584,605.82,604.52,0.33084099]
[1742145660776,0.27995584,605.81,604.52,0.33084099]
[1742145661276,0.28002952,605.8,604.52,0.33084099]
[1742145661477,0.28002952,605.79,604.52,0.33084099]
[1742145661673,0.28002952,605.78,604.52,0.33084099]
[1742145661879,0.28002952,605.77,604.52,0.33084099]
[1742145662073,0.28002952,605.76,604.52,0.33084099]
[1742145662283,0.28002952,605.75,604.52,0.33084099]
[1742145662474,0.28002952,605.74,604.52,0.33084099]
[1742145662779,0.28002952,605.73,604.52,0.33084099]
[1742145662980,0.28002952,605.72,604.52,0.33084099]
[1742145663275,0.28002952,605.71,604.52,0.33084099]
[1742145663479,0.28002952,605.7,604.52,0.33084099]
[1742145663879,0.28002952,605.69,604.52,0.33084099]
[1742145664073,0.28002952,605.68,604.52,0.33084099]
[1742145664277,0.28002952,605.67,604.52,0.33084099]
[1742145664673,0.28002952,605.66,604.52,0.33084099]
[1742145664879,0.28002952,605.71,604.52,0.33084099]
[1742145665079,0.28002952,605.7,604.43,0.764]
[1742145665476,0.28002952,605.69,604.43,0.764]
[1742145665875,0.28002952,605.68,604.43,0.764]
[1742145666079,0.28002952,605.67,604.43,0.764]
[1742145666381,0.28002952,605.66,604.43,0.764]
[1742145666580,0.28002952,605.65,604.43,0.764]
[1742145666784,0.28002952,605.64,604.43,0.764]
[1742145667081,0.28002952,605.63,604.43,0.764]
[1742145667280,1.43425167,605.68,604.43,0.764]
[1742145667482,0.27986564,605.62,604.43,0.764]
[1742145667681,0.27986564,605.67,604.43,0.764]
[1742145668283,0.27986564,605.66,604.43,0.764]
[1742145668577,0.27986564,605.65,604.43,0.764]
[1742145668781,0.27986564,605.64,604.43,0.764]
[1742145668976,0.33024008,605.62,604.43,0.764]
[1742145669381,0.27986564,605.61,604.43,0.764]
[1742145669583,0.27986564,605.6,604.43,0.764]
[1742145669784,0.27986564,605.59,604.43,0.764]
[1742145670082,0.27986564,605.58,604.43,0.764]
[1742145670282,0.61013299,605.57,604.43,0.764]
[1742145670478,0.61013844,605.56,604.43,0.764]
[1742145670682,0.61014389,605.55,604.43,0.764]
[1742145670877,0.61014935,605.54,604.43,0.764]
[1742145671079,0.6101548,605.53,604.43,0.764]
[1742145671279,0.27986564,605.52,604.43,0.764]
[1742145671478,0.33030007,605.51,604.43,0.764]
[1742145671883,0.27984136,605.5,604.43,0.764]
[1742145672483,0.33031098,605.49,604.43,0.764]
[1742145672685,0.27984136,605.48,604.43,0.764]
[1742145672884,0.33032189,605.47,604.43,0.764]
[1742145673085,0.27984136,605.46,604.43,0.764]
[1742145675386,0.2798472,605.45,604.43,0.764]
[1742145675787,0.2798472,605.44,604.43,0.764]
[1742145675985,0.2798472,605.46,604.43,0.764]
[1742145680886,0.2798472,605.45,604.43,0.764]
[1742145681094,0.2798472,605.44,604.43,0.764]
[1742145681487,0.2798472,605.43,604.43,0.764]
[1742145681691,0.2798472,605.42,604.43,0.764]
[1742145681896,0.2798472,605.41,604.43,0.764]
[1742145682091,0.2798472,605.4,604.43,0.764]
[1742145682288,0.2798472,605.39,604.43,0.764]
[1742145682485,0.2798472,605.38,604.43,0.764]
[1742145682688,0.2798472,605.37,604.43,0.764]
[1742145682892,0.2798472,605.36,604.43,0.764]
[1742145683091,0.2798472,605.35,604.43,0.764]
[1742145683293,0.2798472,605.34,604.43,0.764]
[1742145683491,0.2798472,605.33,604.43,0.764]
[1742145683697,0.2798472,605.44,604.43,0.764]
[1742145683989,0.2798472,605.43,604.43,0.764]
[1742145684193,0.2798472,605.44,604.43,0.764]
[1742145684394,0.2798472,605.43,604.43,0.764]
[1742145684592,0.2798472,605.44,604.43,0.764]
[1742145690099,0.33033281,605.45,604.43,0.764]
[1742145690395,0.27983797,605.44,604.43,0.764]
[1742145693598,0.33033281,605.45,604.43,0.764]
[1742145693804,0.27969486,605.44,604.43,0.764]
[1742145699411,0.27988586,605.43,604.43,0.764]
[1742145699611,0.27988586,605.44,604.43,0.764]
[1742145699811,0.27988586,605.43,604.43,0.764]
[1742145700114,0.27988586,605.44,604.43,0.764]
[1742145700311,0.27988586,605.43,604.43,0.764]
[1742145700510,0.27988586,605.44,604.43,0.764]
[1742145700709,0.27988586,605.43,604.43,0.764]
[1742145700909,0.27988586,605.44,604.43,0.764]
[1742145701110,0.27988586,605.43,604.43,0.764]
[1742145701311,0.27988586,605.44,604.43,0.764]
[1742145702711,0.33033281,605.45,604.43,0.764]
[1742145703016,0.2797603,605.44,604.43,0.764]
[1742145708523,0.27989085,605.43,604.43,0.764]
[1742145708718,0.27989085,605.44,604.43,0.764]
[1742145708918,0.27989085,605.43,604.43,0.764]
[1742145709120,0.27989085,605.44,604.43,0.764]
[1742145709317,0.27989085,605.43,604.43,0.764]
[1742145709518,0.27989085,605.42,604.43,0.764]
[1742145709718,0.27989085,605.44,604.43,0.764]
[1742145709918,0.27989085,605.43,604.43,0.764]
[1742145710122,0.27989085,605.44,604.43,0.764]
[1742145710323,0.27989085,605.43,604.43,0.764]
[1742145710520,0.27989085,605.44,604.43,0.764]
[1742145710724,0.27989085,605.43,604.43,0.764]
[1742145710920,0.27989085,605.44,604.43,0.764]
[1742145715925,0.27972745,605.43,604.43,0.764]
[1742145716124,0.27972745,605.44,604.43,0.764]
[1742145716325,0.27972745,605.42,604.43,0.764]
[1742145716524,0.27972745,605.43,604.43,0.764]
[1742145716830,0.27972745,605.42,604.43,0.764]
[1742145717029,0.27972745,605.44,604.43,0.764]
[1742145717230,0.27972745,605.43,604.43,0.764]
[1742145717431,0.27972745,605.44,604.43,0.764]
[1742145717633,0.27972745,605.42,604.43,0.764]
[1742145717829,0.27972745,605.41,604.43,0.764]
[1742145718029,0.27972745,605.44,604.43,0.764]
[1742145718334,0.33033281,605.45,604.43,0.764]
[1742145718335,0.27972745,605.43,604.43,0.764]
[1742145718632,0.27972745,605.42,604.43,0.764]
[1742145718833,0.27972745,605.44,604.43,0.764]
[1742145719030,0.27972745,605.43,604.43,0.764]
[1742145719333,0.27972745,605.42,604.43,0.764]
[1742145719528,0.27972745,605.41,604.43,0.764]
[1742145719728,0.27972745,605.4,604.43,0.764]
[1742145719931,0.27972745,605.44,604.43,0.764]
[1742145720131,0.33033281,605.45,604.43,0.764]
[1742145720132,0.27972745,605.43,604.43,0.764]
[1742145720433,0.27972745,605.42,604.43,0.764]
[1742145720633,0.27972745,605.44,604.43,0.764]
[1742145720833,0.27972745,605.43,604.43,0.764]
[1742145721032,0.33033281,605.45,604.43,0.764]
[1742145721233,0.27976038,605.44,604.43,0.764]
[1742145722834,0.27977278,605.43,604.43,0.764]
[1742145723031,0.27977278,605.44,604.43,0.764]
[1742145723236,0.27977278,605.43,604.43,0.764]
[1742145723432,0.27977278,605.44,604.43,0.764]
[1742145724637,0.33033281,605.45,604.43,0.764]
[1742145724837,0.27974302,605.44,604.43,0.764]
[1742145726537,0.27971989,605.43,604.43,0.764]
[1742145726839,0.27971989,605.42,604.43,0.764]
[1742145727136,0.27971989,605.41,604.43,0.764]
[1742145727337,0.33033281,605.45,604.43,0.764]
[1742145727338,0.27971989,605.4,604.43,0.764]
[1742145727633,0.27971989,605.39,604.43,0.764]
[1742145727838,0.27971989,605.38,604.43,0.764]
[1742145728039,0.27971989,605.37,604.43,0.764]
[1742145728338,0.33033281,605.45,604.43,0.764]
[1742145728634,0.27977206,605.44,604.43,0.764]
[1742145734044,0.27966821,605.43,604.43,0.764]
[1742145734242,0.27966821,605.44,604.43,0.764]
[1742145737545,0.33033281,605.45,604.43,0.764]
[1742145737738,0.27963026,605.44,604.43,0.764]
[1742145739443,0.27963026,605.43,604.43,0.764]
[1742145739640,0.33033281,605.45,604.43,0.764]
[1742145740646,0.27966183,605.44,604.43,0.764]
[1742145741546,0.33033281,605.45,604.43,0.764]
[1742145741746,0.27965613,605.44,604.43,0.764]
[1742145748552,0.27965613,605.43,604.43,0.764]
[1742145748752,0.27965613,605.42,604.43,0.764]
[1742145749051,0.27991618,605.41,604.43,0.764]
[1742145749244,0.27991618,605.44,604.43,0.764]
[1742145749446,0.27991618,605.4,604.43,0.764]
[1742145749651,0.27991618,605.44,604.43,0.764]
[1742145749847,0.27991618,605.43,604.43,0.764]
[1742145750053,0.27991618,605.42,604.43,0.764]
[1742145750249,0.27991618,605.41,604.43,0.764]
[1742145750450,0.27991618,605.4,604.43,0.764]
[1742145750649,0.27991618,605.39,604.43,0.764]
[1742145750955,0.33033281,605.45,604.43,0.764]
[1742145750956,0.27998572,605.38,604.43,0.764]
[1742145751150,0.27998572,605.37,604.43,0.764]
[1742145751365,2.50503755,605.41,604.43,0.764]
[1742145751366,3.74457896,605.4,604.43,0.764]
[1742145751548,0.27998572,605.39,604.43,0.764]
[1742145752149,0.27998572,605.38,604.43,0.764]
[1742145752350,2.90976999,605.4,604.43,0.764]
[1742145752556,0.27998572,605.39,604.43,0.764]
[1742145752757,0.28001216,605.38,604.43,0.764]
[1742145752957,0.28001216,605.39,604.43,0.764]
[1742145754062,2.96011708,605.45,604.43,0.764]
[1742145754063,0.28001216,605.44,604.43,0.764]
[1742145754259,2.96011708,605.45,604.43,0.764]
[1742145754260,0.28001216,605.38,604.43,0.764]
[1742145754556,0.28001216,605.37,604.43,0.764]
[1742145754761,0.28001216,605.44,604.43,0.764]
[1742145754960,0.28001216,605.43,604.43,0.764]
[1742145755156,0.28001216,605.44,604.43,0.764]
[1742145755357,0.28001216,605.43,604.43,0.764]
[1742145755663,0.28001216,605.42,604.43,0.764]
[1742145755962,0.33033281,605.45,604.43,0.764]
[1742145755963,0.28001216,605.41,604.43,0.764]
[1742145756162,0.33033281,605.45,604.43,0.764]
[1742145756358,0.28009107,605.44,604.43,0.764]
[1742145764770,0.28009107,605.43,604.43,0.764]
[1742145764965,0.28009107,605.42,604.43,0.764]
[1742145765167,0.28009107,605.41,604.43,0.764]
[1742145765366,0.27985493,605.4,604.43,0.764]
[1742145765766,0.27985493,605.39,604.43,0.764]
[1742145765972,0.27985493,605.38,604.43,0.764]
[1742145766169,0.27985493,605.37,604.43,0.764]
[1742145766368,0.27985493,605.36,604.43,0.764]
[1742145766570,0.27985493,605.38,604.43,0.764]
[1742145766872,0.27985493,605.37,604.43,0.764]
[1742145767173,0.27985493,605.38,604.43,0.764]
[1742145767375,0.27979232,605.37,604.43,0.764]
[1742145767568,0.27979232,605.36,604.43,0.764]
[1742145767772,0.27979232,605.35,604.43,0.764]
[1742145767971,0.27979232,605.34,604.43,0.764]
[1742145768166,0.27979232,605.33,604.43,0.764]
[1742145768372,0.27979232,605.32,604.43,0.764]
[1742145768572,0.27979232,605.31,604.43,0.764]
[1742145768768,2.50503755,605.31,604.43,0.764]
[1742145768973,0.27979232,605.3,604.43,0.764]
[1742145769168,0.27982523,605.29,604.43,0.764]
[1742145769370,0.27982523,605.28,604.43,0.764]
[1742145769567,0.27982523,605.29,604.43,0.764]
[1742145769768,0.27982523,605.28,604.43,0.764]
[1742145770067,0.27982523,605.27,604.43,0.764]
[1742145770272,0.27982523,605.29,604.43,0.764]
[1742145770467,0.27982523,605.28,604.43,0.764]
[1742145770671,0.27982523,605.29,604.43,0.764]
[1742145770872,2.62978427,605.3,604.43,0.764]
[1742145771175,0.27981573,605.29,604.43,0.764]
[1742145771977,5.18196976,605.44,604.43,0.764]